Workbook

Sheet CT Data
B1: Author: Guy Schott, guy.schott@waterboards.ca.gov, 707-576-2732
B2: CT Compliance for
B3: Viruses
B4: by Chlorine Dioxide Disinfection
B6: Input Parameters:
B7: Water System Name: | I7: Enter Name
B8: Number of Service Connections: | I8: Enter number
B9: System Number: | I9: Enter number
B10: Month and Year: | I10: 2017-07-01
B11: Clearwell(s) - Volume per Foot: | I11: 50000 | J11: Gallons/Ft
B12: Short-Circuiting Factor for Clearwell(s): | I12: 0.2 | J12: t10/T
B13: Transmission Pipe - Volume | I13: 1000 | J13: Gallons
B14: Short-Circuiting Factor for Transmission Pipe: | I14: 0.9 | J14: t10/T
C16: Data inputs should be based on when plant is on-line and flow leaving clearwell | M16: Results | AY16: =DATE(AY17,AZ17,AZ16) -> 2017-07-01 | AZ16: 1
C17: Clearwell & Transmission Data for Peak Hourly Flow (for waters with pH = 6.0-9.0) | K17: Crypto | L17: Giardia | M17: Viruses | AY17: =YEAR(I10) -> 2017 | AZ17: =MONTH($I$10) -> 7 | BI17: Virus Table for 4 log | CO17: Giardia
B18: Date | C18: Flow Rate, gpm | D18: Lowest Level, ft | E18: Temp, oC | F18: ClO2 Residual, mg/L | G18: ClO2- Residual, mg/L | H18: Effective Volume, gal | I18: Effective Contact Time, minutes | J18: CT10 mg/L∙min | K18: Log Inactivation | L18: Log Inactivation | M18: Log Inactivation | AE18: Log Virus | AF18: CT Virus | AG18: 1 | AH18: 2 | AJ18: 1-5, Log | AK18: 1 | AL18: 2 | AN18: 5-20, Log | AO18: 1 | AP18: 2 | AR18: 20-25, Log | BI18: 1 | BJ18: 2 | BK18: 3 | BL18: 4 | BM18: 5 | BN18: 6 | BO18: 7 | BP18: 8 | BQ18: 9 | BR18: 10 | BS18: 11 | BT18: 12 | BU18: 13 | BV18: 14 | BW18: 15 | BX18: 16 | BY18: 17 | BZ18: 18 | CA18: 19 | CB18: 20 | CC18: 21 | CD18: 22 | CE18: 23 | CF18: 24 | CG18: 25 | CJ18: Required Log Inactivation: | CK18: 0.5 | CL18: 3.5 | CO18: Log Inactivation
B19: =AY19&"-"&AZ19 -> Sat-1 | C19: 1200 | D19: 5 | E19: 5 | F19: 0.8 | G19: 0.5 | H19: =IF(AND(D19=0,$I$13=0),"-",IF(C19<=0,"-",$I$11*D19*$I$12+$I$13*$I$14)) -> 50900 | I19: =IF(C19=0,"-",H19/(C19)) -> 42.41666667 | J19: =IF(OR($C19=0,$F19<=0),"-",I19*F19) -> 33.93333333 | K19: =IF(OR($D19=0,$C19=0,$F19<=0),"-", (0.001506*(1.09116^E19)*J19)) -> 0.07904850865 | L19: =IF(OR($D19=0,$C19=0,$F19<=0),"-", IF(CO19>8,">8.0",CO19)) -> 3.891437309 | M19: =IF(OR($C19<=0,E19<=0,$F19<=0),"-",IF(J19>AF19,">4.0",IF(E19<=5,AJ19,IF(E19<=20,AN19,AR19)))) -> >4.0 | AE19: =IF(OR($C19=0,E19<=0,$F19<=0),"-", 4*J19/AF19) -> 4.063872255 | AF19: =IF(E19<1,"-",HLOOKUP(E19,$BI$18:$CG$19,2)) -> 33.4 | AG19: =-0.00001929*E19^2-0.00000929*E19-0.000392 -> -0.0009207 | AH19: =0.00093714*E19^2+0.00328714*E19+0.068062 -> 0.1079262 | AI19: 1.4244 | AJ19: =IF(C19<=0,"-",AG19*$J19^2+AH19*$J19+AI19) -> 4.026536268 | AK19: =-0.00000004*E19^4+0.00000159*E19^3-0.00004328*E19^2+0.00030334*E19-0.00156149 -> -0.00095304 | AL19: =-0.00002*E19^3+0.001177*E19^2-0.007005*E19+0.117161 -> 0.109061 | AM19: 1.4248 | AN19: =IF(C19<=0,"-",AK19*$J19^2+AL19*$J19+AM19) -> 4.028205239 | AO19: =-0.000171*E19^2+0.006151*E19-0.061302 -> -0.034822 | AP19: =0.002057*E19^2-0.065201*E19+0.770529 -> 0.495949 | AQ19: 1.426585 | AR19: =IF(C19<=0,"-",AO19*$J19^2+AP19*$J19+AQ19) -> -21.8407393 | AY19: =IF(ISBLANK($AY$16),"",TEXT(AY16,"ddd")) -> Sat | AZ19: 1 | BB19: 0.5 | BC19: 0.5 | BF19: =$BF$53 -> 3.891437309 | BG19: =$BG$53 -> - | BI19: 50.1 | BJ19: 45.9 | BK19: 41.8 | BL19: 37.6 | BM19: 33.4 | BN19: 31.7 | BO19: 30.1 | BP19: 28.4 | BQ19: 26.8 | BR19: 25.1 | BS19: 23.4 | BT19: 21.7 | BU19: 20.1 | BV19: 18.4 | BW19: 16.7 | BX19: 15.9 | BY19: 15 | BZ19: 14.2 | CA19: 13.3 | CB19: 12.5 | CC19: 11.7 | CD19: 10.9 | CE19: 10 | CF19: 9.2 | CG19: 8.4 | CO19: =IF(OR($D19=0,$C19=0,$F19<=0),"-",IF(E19<=5,J19/(-3.07*E19+24.07),J19/(-0.2561*E19+10.137))) -> 3.891437309
B20: Sun-2 | C20: 1200 | D20: 5 | E20: 5 | F20: 0.8 | G20: 0.2 | H20: =IF(AND(D20=0,$I$13=0),"-",IF(C20<=0,"-",$I$11*D20*$I$12+$I$13*$I$14)) -> 50900 | I20: =IF(C20=0,"-",H20/(C20)) -> 42.41666667 | J20: =IF(OR($C20=0,$F20<=0),"-",I20*F20) -> 33.93333333 | K20: =IF(OR($D20=0,$C20=0,$F20<=0),"-", (0.001506*(1.09116^E20)*J20)) -> 0.07904850865 | L20: =IF(OR($D20=0,$C20=0,$F20<=0),"-", IF(CO20>8,">8.0",CO20)) -> 3.891437309 | M20: =IF(OR($C20<=0,E20<=0,$F20<=0),"-",IF(J20>AF20,">4.0",IF(E20<=5,AJ20,IF(E20<=20,AN20,AR20)))) -> >4.0 | AE20: =IF(OR($C20=0,E20<=0,$F20<=0),"-", 4*J20/AF20) -> 4.063872255 | AF20: 33.4 | AG20: -0.0009207 | AH20: 0.1079262 | AI20: 1.4244 | AJ20: 4.026536268 | AK20: -0.00095304 | AL20: 0.109061 | AM20: 1.4248 | AN20: 4.028205239 | AO20: -0.034822 | AP20: 0.495949 | AQ20: 1.426585 | AR20: -21.8407393 | AY20: =IF(ISBLANK($AY$16),"",TEXT($AVO$16+AZ19,"ddd")) -> Sun | AZ20: 2 | BB20: 1 | BC20: 1 | BF20: 3.891437309 | BG20: - | CO20: 3.891437309
B21: Mon-3 | H21: - | I21: - | J21: - | K21: - | L21: - | M21: - | AE21: - | AF21: - | AG21: -0.000392 | AH21: 0.068062 | AI21: 1.4244 | AJ21: - | AK21: -0.00156149 | AL21: 0.117161 | AM21: 1.4248 | AN21: - | AO21: -0.061302 | AP21: 0.770529 | AQ21: 1.426585 | AR21: - | AY21: =IF(ISBLANK($AY$16),"",TEXT($AVO$16+AZ20,"ddd")) -> Mon | AZ21: =AZ20+1 -> 3 | BB21: 1.5 | BC21: 1.5 | BF21: 3.891437309 | BG21: - | BI21: Temp | BJ21: 2 | BK21: 3 | BL21: 4 | CO21: -
B22: Tue-4 | H22: - | I22: - | J22: - | K22: - | L22: - | M22: - | AE22: - | AF22: - | AG22: -0.000392 | AH22: 0.068062 | AI22: 1.4244 | AJ22: - | AK22: -0.00156149 | AL22: 0.117161 | AM22: 1.4248 | AN22: - | AO22: -0.061302 | AP22: 0.770529 | AQ22: 1.426585 | AR22: - | AY22: Tue | AZ22: =AZ21+1 -> 4 | BB22: 2 | BC22: 2 | BF22: 3.891437309 | BG22: - | BI22: 1 | BJ22: 8.4 | BK22: 25.6 | BL22: 50.1 | CO22: -
B23: Wed-5 | H23: - | I23: - | J23: - | K23: - | L23: - | M23: - | AE23: - | AF23: - | AG23: -0.000392 | AH23: 0.068062 | AI23: 1.4244 | AJ23: - | AK23: -0.00156149 | AL23: 0.117161 | AM23: 1.4248 | AN23: - | AO23: -0.061302 | AP23: 0.770529 | AQ23: 1.426585 | AR23: - | AY23: Wed | AZ23: 5 | BB23: 2.5 | BC23: 2.5 | BF23: 3.891437309 | BG23: - | BI23: 2 | BJ23: 7.7 | BK23: 23.5 | BL23: 45.9 | CO23: -
B24: Thu-6 | H24: - | I24: - | J24: - | K24: - | L24: - | M24: - | AE24: - | AF24: - | AG24: -0.000392 | AH24: 0.068062 | AI24: 1.4244 | AJ24: - | AK24: -0.00156149 | AL24: 0.117161 | AM24: 1.4248 | AN24: - | AO24: -0.061302 | AP24: 0.770529 | AQ24: 1.426585 | AR24: - | AY24: Thu | AZ24: 6 | BB24: 3 | BC24: 3 | BF24: 3.891437309 | BG24: - | BI24: 3 | BJ24: 7 | BK24: 21.4 | BL24: 41.8 | CO24: -
B25: Fri-7 | H25: - | I25: - | J25: - | K25: - | L25: - | M25: - | AE25: - | AF25: - | AG25: -0.000392 | AH25: 0.068062 | AI25: 1.4244 | AJ25: - | AK25: -0.00156149 | AL25: 0.117161 | AM25: 1.4248 | AN25: - | AO25: -0.061302 | AP25: 0.770529 | AQ25: 1.426585 | AR25: - | AY25: Fri | AZ25: 7 | BC25: 3.5 | BF25: 3.891437309 | BG25: - | BI25: 4 | BJ25: 6.3 | BK25: 19.2 | BL25: 37.6 | CO25: -
B26: Sat-8 | H26: - | I26: - | J26: - | K26: - | L26: - | M26: - | AE26: - | AF26: - | AG26: -0.000392 | AH26: 0.068062 | AI26: 1.4244 | AJ26: - | AK26: -0.00156149 | AL26: 0.117161 | AM26: 1.4248 | AN26: - | AO26: -0.061302 | AP26: 0.770529 | AQ26: 1.426585 | AR26: - | AY26: Sat | AZ26: 8 | BC26: 4 | BF26: 3.891437309 | BG26: - | BI26: 5 | BJ26: 5.6 | BK26: 17.1 | BL26: 33.4 | CO26: -
B27: =AY27&"-"&AZ27 -> Sun-9 | H27: - | I27: - | J27: - | K27: - | L27: - | M27: - | AE27: - | AF27: - | AG27: -0.000392 | AH27: 0.068062 | AI27: 1.4244 | AJ27: - | AK27: -0.00156149 | AL27: 0.117161 | AM27: 1.4248 | AN27: - | AO27: -0.061302 | AP27: 0.770529 | AQ27: 1.426585 | AR27: - | AY27: Sun | AZ27: =AZ26+1 -> 9 | BF27: 3.891437309 | BG27: - | BI27: 6 | BJ27: 5.3 | BK27: 16.2 | BL27: 31.7 | CO27: -
B28: Mon-10 | H28: - | I28: - | J28: - | K28: - | L28: - | M28: - | AE28: - | AF28: - | AG28: -0.000392 | AH28: 0.068062 | AI28: 1.4244 | AJ28: - | AK28: -0.00156149 | AL28: 0.117161 | AM28: 1.4248 | AN28: - | AO28: -0.061302 | AP28: 0.770529 | AQ28: 1.426585 | AR28: - | AY28: Mon | AZ28: 10 | BF28: 3.891437309 | BG28: - | BI28: 7 | BJ28: 5 | BK28: 15.4 | BL28: 30.1 | CO28: -
B29: Tue-11 | H29: - | I29: - | J29: - | K29: - | L29: - | M29: - | AE29: - | AF29: - | AG29: -0.000392 | AH29: 0.068062 | AI29: 1.4244 | AJ29: - | AK29: -0.00156149 | AL29: 0.117161 | AM29: 1.4248 | AN29: - | AO29: -0.061302 | AP29: 0.770529 | AQ29: 1.426585 | AR29: - | AY29: Tue | AZ29: 11 | BF29: 3.891437309 | BG29: - | BI29: 8 | BJ29: 4.8 | BK29: 14.5 | BL29: 28.4 | CO29: -
B30: Wed-12 | H30: - | I30: - | J30: - | K30: - | L30: - | M30: - | AE30: - | AF30: - | AG30: -0.000392 | AH30: 0.068062 | AI30: 1.4244 | AJ30: - | AK30: -0.00156149 | AL30: 0.117161 | AM30: 1.4248 | AN30: - | AO30: -0.061302 | AP30: 0.770529 | AQ30: 1.426585 | AR30: - | AY30: Wed | AZ30: 12 | BF30: 3.891437309 | BG30: - | BI30: 9 | BJ30: 4.5 | BK30: 13.7 | BL30: 26.8 | CO30: -
B31: Thu-13 | H31: - | I31: - | J31: - | K31: - | L31: - | M31: - | AE31: - | AF31: - | AG31: -0.000392 | AH31: 0.068062 | AI31: 1.4244 | AJ31: - | AK31: -0.00156149 | AL31: 0.117161 | AM31: 1.4248 | AN31: - | AO31: -0.061302 | AP31: 0.770529 | AQ31: 1.426585 | AR31: - | AY31: Thu | AZ31: 13 | BF31: 3.891437309 | BG31: - | BI31: 10 | BJ31: 4.2 | BK31: 12.8 | BL31: 25.1 | CO31: -
B32: Fri-14 | H32: - | I32: - | J32: - | K32: - | L32: - | M32: - | AE32: - | AF32: - | AG32: -0.000392 | AH32: 0.068062 | AI32: 1.4244 | AJ32: - | AK32: -0.00156149 | AL32: 0.117161 | AM32: 1.4248 | AN32: - | AO32: -0.061302 | AP32: 0.770529 | AQ32: 1.426585 | AR32: - | AY32: Fri | AZ32: 14 | BF32: 3.891437309 | BG32: - | BI32: 11 | BJ32: 3.9 | BK32: 12 | BL32: 23.4 | CO32: -
B33: Sat-15 | H33: - | I33: - | J33: - | K33: - | L33: - | M33: - | AE33: - | AF33: - | AG33: -0.000392 | AH33: 0.068062 | AI33: 1.4244 | AJ33: - | AK33: -0.00156149 | AL33: 0.117161 | AM33: 1.4248 | AN33: - | AO33: -0.061302 | AP33: 0.770529 | AQ33: 1.426585 | AR33: - | AY33: Sat | AZ33: 15 | BF33: 3.891437309 | BG33: - | BI33: 12 | BJ33: 3.6 | BK33: 11.1 | BL33: 21.7 | CO33: -
B34: Sun-16 | H34: - | I34: - | J34: - | K34: - | L34: - | M34: - | AE34: - | AF34: - | AG34: -0.000392 | AH34: 0.068062 | AI34: 1.4244 | AJ34: - | AK34: -0.00156149 | AL34: 0.117161 | AM34: 1.4248 | AN34: - | AO34: -0.061302 | AP34: 0.770529 | AQ34: 1.426585 | AR34: - | AY34: Sun | AZ34: 16 | BF34: 3.891437309 | BG34: - | BI34: 13 | BJ34: 3.4 | BK34: 10.3 | BL34: 20.1 | CO34: -
B35: Mon-17 | H35: - | I35: - | J35: - | K35: - | L35: - | M35: - | AE35: - | AF35: - | AG35: -0.000392 | AH35: 0.068062 | AI35: 1.4244 | AJ35: - | AK35: -0.00156149 | AL35: 0.117161 | AM35: 1.4248 | AN35: - | AO35: -0.061302 | AP35: 0.770529 | AQ35: 1.426585 | AR35: - | AY35: Mon | AZ35: 17 | BF35: 3.891437309 | BG35: - | BI35: 14 | BJ35: 3.1 | BK35: 9.4 | BL35: 18.4 | CO35: -
B36: Tue-18 | H36: - | I36: - | J36: - | K36: - | L36: - | M36: - | AE36: - | AF36: - | AG36: -0.000392 | AH36: 0.068062 | AI36: 1.4244 | AJ36: - | AK36: -0.00156149 | AL36: 0.117161 | AM36: 1.4248 | AN36: - | AO36: -0.061302 | AP36: 0.770529 | AQ36: 1.426585 | AR36: - | AY36: Tue | AZ36: 18 | BF36: 3.891437309 | BG36: - | BI36: 15 | BJ36: 2.8 | BK36: 8.6 | BL36: 16.7 | CO36: -
B37: Wed-19 | H37: - | I37: - | J37: - | K37: - | L37: - | M37: - | AE37: - | AF37: - | AG37: -0.000392 | AH37: 0.068062 | AI37: 1.4244 | AJ37: - | AK37: -0.00156149 | AL37: 0.117161 | AM37: 1.4248 | AN37: - | AO37: -0.061302 | AP37: 0.770529 | AQ37: 1.426585 | AR37: - | AY37: Wed | AZ37: 19 | BF37: 3.891437309 | BG37: - | BI37: 16 | BJ37: 2.7 | BK37: 8.2 | BL37: 15.9 | CO37: -
B38: Thu-20 | H38: - | I38: - | J38: - | K38: - | L38: - | M38: - | AE38: - | AF38: - | AG38: -0.000392 | AH38: 0.068062 | AI38: 1.4244 | AJ38: - | AK38: -0.00156149 | AL38: 0.117161 | AM38: 1.4248 | AN38: - | AO38: -0.061302 | AP38: 0.770529 | AQ38: 1.426585 | AR38: - | AY38: Thu | AZ38: 20 | BF38: 3.891437309 | BG38: - | BI38: 17 | BJ38: 2.5 | BK38: 7.7 | BL38: 15 | CO38: -
B39: Fri-21 | H39: - | I39: - | J39: - | K39: - | L39: - | M39: - | AE39: - | AF39: - | AG39: -0.000392 | AH39: 0.068062 | AI39: 1.4244 | AJ39: - | AK39: -0.00156149 | AL39: 0.117161 | AM39: 1.4248 | AN39: - | AO39: -0.061302 | AP39: 0.770529 | AQ39: 1.426585 | AR39: - | AY39: Fri | AZ39: 21 | BF39: 3.891437309 | BG39: - | BI39: 18 | BJ39: 2.4 | BK39: 7.3 | BL39: 14.2 | CO39: -
B40: Sat-22 | H40: - | I40: - | J40: - | K40: - | L40: - | M40: - | AE40: - | AF40: - | AG40: -0.000392 | AH40: 0.068062 | AI40: 1.4244 | AJ40: - | AK40: -0.00156149 | AL40: 0.117161 | AM40: 1.4248 | AN40: - | AO40: -0.061302 | AP40: 0.770529 | AQ40: 1.426585 | AR40: - | AY40: Sat | AZ40: 22 | BF40: 3.891437309 | BG40: - | BI40: 19 | BJ40: 2.2 | BK40: 6.8 | BL40: 13.3 | CO40: -
B41: Sun-23 | H41: - | I41: - | J41: - | K41: - | L41: - | M41: - | AE41: - | AF41: - | AG41: -0.000392 | AH41: 0.068062 | AI41: 1.4244 | AJ41: - | AK41: -0.00156149 | AL41: 0.117161 | AM41: 1.4248 | AN41: - | AO41: -0.061302 | AP41: 0.770529 | AQ41: 1.426585 | AR41: - | AY41: Sun | AZ41: 23 | BF41: 3.891437309 | BG41: - | BI41: 20 | BJ41: 2.1 | BK41: 6.4 | BL41: 12.5 | CO41: -
B42: Mon-24 | H42: - | I42: - | J42: - | K42: - | L42: - | M42: - | AE42: - | AF42: - | AG42: -0.000392 | AH42: 0.068062 | AI42: 1.4244 | AJ42: - | AK42: -0.00156149 | AL42: 0.117161 | AM42: 1.4248 | AN42: - | AO42: -0.061302 | AP42: 0.770529 | AQ42: 1.426585 | AR42: - | AY42: Mon | AZ42: 24 | BF42: 3.891437309 | BG42: - | BI42: 21 | BJ42: 2 | BK42: 6 | BL42: 11.7 | CO42: -
B43: Tue-25 | H43: - | I43: - | J43: - | K43: - | L43: - | M43: - | AE43: - | AF43: - | AG43: -0.000392 | AH43: 0.068062 | AI43: 1.4244 | AJ43: - | AK43: -0.00156149 | AL43: 0.117161 | AM43: 1.4248 | AN43: - | AO43: -0.061302 | AP43: 0.770529 | AQ43: 1.426585 | AR43: - | AY43: Tue | AZ43: 25 | BF43: 3.891437309 | BG43: - | BI43: 22 | BJ43: 1.8 | BK43: 5.6 | BL43: 10.9 | CO43: -
B44: Wed-26 | H44: - | I44: - | J44: - | K44: - | L44: - | M44: - | AE44: - | AF44: - | AG44: -0.000392 | AH44: 0.068062 | AI44: 1.4244 | AJ44: - | AK44: -0.00156149 | AL44: 0.117161 | AM44: 1.4248 | AN44: - | AO44: -0.061302 | AP44: 0.770529 | AQ44: 1.426585 | AR44: - | AY44: Wed | AZ44: 26 | BF44: 3.891437309 | BG44: - | BI44: 23 | BJ44: 1.7 | BK44: 5.1 | BL44: 10 | CO44: -
B45: Thu-27 | H45: - | I45: - | J45: - | K45: - | L45: - | M45: - | AE45: - | AF45: - | AG45: -0.000392 | AH45: 0.068062 | AI45: 1.4244 | AJ45: - | AK45: -0.00156149 | AL45: 0.117161 | AM45: 1.4248 | AN45: - | AO45: -0.061302 | AP45: 0.770529 | AQ45: 1.426585 | AR45: - | AY45: Thu | AZ45: 27 | BF45: 3.891437309 | BG45: - | BI45: 24 | BJ45: 1.5 | BK45: 4.7 | BL45: 9.2 | CO45: -
B46: Fri-28 | H46: - | I46: - | J46: - | K46: - | L46: - | M46: - | AE46: - | AF46: - | AG46: -0.000392 | AH46: 0.068062 | AI46: 1.4244 | AJ46: - | AK46: -0.00156149 | AL46: 0.117161 | AM46: 1.4248 | AN46: - | AO46: -0.061302 | AP46: 0.770529 | AQ46: 1.426585 | AR46: - | AY46: Fri | AZ46: 28 | BF46: 3.891437309 | BG46: - | BI46: 25 | BJ46: 1.4 | BK46: 4.3 | BL46: 8.4 | CO46: -
B47: Sat-29 | H47: - | I47: - | J47: - | K47: - | L47: - | M47: - | AE47: - | AF47: - | AG47: -0.000392 | AH47: 0.068062 | AI47: 1.4244 | AJ47: - | AK47: -0.00156149 | AL47: 0.117161 | AM47: 1.4248 | AN47: - | AO47: -0.061302 | AP47: 0.770529 | AQ47: 1.426585 | AR47: - | AY47: Sat | AZ47: 29 | BF47: 3.891437309 | BG47: - | CO47: -
B48: Sun-30 | H48: - | I48: - | J48: - | K48: - | L48: - | M48: - | AE48: - | AF48: - | AG48: -0.000392 | AH48: 0.068062 | AI48: 1.4244 | AJ48: - | AK48: -0.00156149 | AL48: 0.117161 | AM48: 1.4248 | AN48: - | AO48: -0.061302 | AP48: 0.770529 | AQ48: 1.426585 | AR48: - | AY48: Sun | AZ48: 30 | BF48: 3.891437309 | BG48: - | CO48: -
B49: Mon-31 | H49: - | I49: - | J49: - | K49: - | L49: - | M49: - | AE49: - | AF49: - | AG49: -0.000392 | AH49: 0.068062 | AI49: 1.4244 | AJ49: - | AK49: -0.00156149 | AL49: 0.117161 | AM49: 1.4248 | AN49: - | AO49: -0.061302 | AP49: 0.770529 | AQ49: 1.426585 | AR49: - | AY49: Mon | AZ49: 31 | BF49: 3.891437309 | BG49: - | CO49: -
B50: Min | C50: =MIN(C19:C49) -> 1200 | D50: 5 | E50: 5 | F50: 0.8 | G50: =MIN(G19:G49) -> 0.2 | H50: 50900 | I50: 42.41666667 | J50: =MIN(J19:J49) -> 33.93333333 | K50: =MIN(K19:K49) -> 0.07904850865 | L50: =MIN(L19:L49) -> 3.891437309 | M50: =IF(AND(MIN(M19:M49) = 0,M51=">4.0"),">4.0",MIN(M19:M49)) -> >4.0 | CO50: =MIN(CO19:CO49) -> 3.891437309
B51: Median | C51: =IF(SUM(C19:C49)<=0,0,MEDIAN(C19:C49)) -> 1200 | D51: =IF(SUM(D19:D49)<=0,0,MEDIAN(D19:D49)) -> 5 | E51: =IF(SUM(E19:E49)<=0,0,MEDIAN(E19:E49)) -> 5 | F51: =IF(SUM(F19:F49)<=0,0,MEDIAN(F19:F49)) -> 0.8 | G51: =IF(SUM(G19:G49)<=0,0,MEDIAN(G19:G49)) -> 0.35 | H51: =IF(SUM(H19:H49)<=0,0,MEDIAN(H19:H49)) -> 50900 | I51: =IF(SUM(I19:I49)<=0,0,MEDIAN(I19:I49)) -> 42.41666667 | J51: 33.93333333 | K51: =IF(SUM(K19:K49)<=0,"-",MEDIAN(K19:K49)) -> 0.07904850865 | L51: =IF(SUM(L19:L49)<=0,"-",MEDIAN(L19:L49)) -> 3.891437309 | M51: =IF(SUM(AE19:AE49)<=0,"-",IF(MEDIAN(AE19:AE49)>4,">4.0",MEDIAN(AE19:AE49))) -> >4.0 | CO51: =IF(SUM(CO19:CO49)<=0,0,MEDIAN(CO19:CO49)) -> 3.891437309
B52: Max | C52: =MAX(C19:C49) -> 1200 | D52: =MAX(D19:D49) -> 5 | E52: =MAX(E19:E49) -> 5 | F52: =MAX(F19:F49) -> 0.8 | G52: =MAX(G19:G49) -> 0.5 | H52: =MAX(H19:H49) -> 50900 | I52: =MAX(I19:I49) -> 42.41666667 | J52: 33.93333333 | K52: =MAX(K19:K49) -> 0.07904850865 | L52: =IF(MAX(CO19:CO49)>8,">8.0",MAX(CO18:CO49)) -> 3.891437309 | M52: =IF(MAX(AE19:AE49)>4,">4.0",MAX(AE19:AE49)) -> >4.0 | CO52: =MAX(CO19:CO49) -> 3.891437309
BE53: Average: | BF53: =IF(SUM(CO19:CO49)=0,"-",AVERAGE(CO19:CO49)) -> 3.891437309 | BG53: =IF(SUM(M19:M49)=0,"-",AVERAGE(M19:M49)) -> -
B55: Print Name:
B56: Signature: | I56: Date:
